bitfinex-derivatives/quotes_BTCF0:USTF0_20251219
["timestamp","ask_amount","ask_price","bid_price","bid_amount"]
[1766114005398,0.01368968,86460.0,86443.0,0.00588]
[1766114005899,0.01368968,86460.0,86427.0,0.0115766]
[1766114005900,0.14305328,86458.0,86427.0,0.0115766]
[1766114006103,0.14305328,86458.0,86425.0,0.00017358]
[1766114006104,0.1523146,86444.0,86428.0,0.004]
[1766114006302,0.00017358,86449.0,86428.0,0.004]
[1766114006499,0.01174758,86449.0,86428.0,0.0155766]
[1766114006899,0.00017358,86449.0,86428.0,0.004]
[1766114007101,0.00017358,86449.0,86429.0,0.14576]
[1766114007406,0.00017358,86449.0,86437.0,0.0115753]
[1766114007602,0.00660347,86483.0,86439.0,0.58977658]
[1766114007802,0.0115707,86473.0,86451.0,0.1573335]
[1766114008100,0.0115707,86473.0,86440.0,0.30076829]
[1766114008101,0.14074,86475.0,86452.0,0.00588]
[1766114008289,0.00396,86474.0,86458.0,0.0115725]
[1766114008490,0.00605348,86475.0,86461.0,0.0115722]
[1766114008694,0.00605348,86475.0,86457.0,0.01174608]
[1766114009304,0.00605348,86475.0,86457.0,0.00017348]
[1766114009305,0.00017348,86475.0,86457.0,0.00017348]
[1766114009508,0.00017348,86475.0,86457.0,0.01174608]
[1766114009692,0.00588,86474.0,86457.0,0.00017348]
[1766114009896,0.00588,86474.0,86461.0,0.0115721]
[1766114010104,0.00588,86474.0,86457.0,0.01174608]
[1766114010306,0.00588,86474.0,86458.0,0.0115725]
[1766114010706,0.00588,86474.0,86460.0,0.0115722]
[1766114010912,0.00588,86474.0,86457.0,0.00017348]
[1766114011114,0.00588,86474.0,86466.0,0.0115714]
[1766114011301,0.15074,86482.0,86457.0,0.00017348]
[1766114011609,0.01,86482.0,86457.0,0.15181348]
[1766114011794,0.01588,86482.0,86460.0,0.44064829]
[1766114012001,0.01588,86482.0,86461.0,0.14576]
[1766114012201,0.00011551,86480.0,86461.0,0.14576]
[1766114012404,0.00011551,86480.0,86467.0,0.0115713]
[1766114012610,0.00011551,86480.0,86466.0,0.0174515]
[1766114012814,0.00011551,86480.0,86466.0,0.00588]
[1766114013008,0.00011551,86480.0,86470.0,0.0115709]
[1766114013606,0.00638098,86502.0,86471.0,0.14576]
[1766114013811,0.00763809,86512.0,86489.0,0.14576]
[1766114014118,0.00763809,86512.0,86466.0,0.00588]
[1766114014119,0.14837809,86512.0,86487.0,0.00588]
[1766114014299,0.14837809,86512.0,86488.0,0.00588]
[1766114014300,0.0115666,86504.0,86488.0,0.00588]
[1766114014504,0.0115666,86504.0,86479.0,0.0115697]
[1766114014703,0.0115666,86504.0,86483.0,0.00017348]
[1766114014913,0.0115666,86504.0,86483.0,0.01174278]
[1766114015104,0.00588,86505.0,86483.0,0.01174278]
[1766114015105,0.00588,86505.0,86483.0,0.00017348]
[1766114015320,0.00588,86505.0,86440.0,0.38868214]
[1766114015321,0.0115684,86490.0,86468.0,0.0115712]
[1766114015525,0.00588,86495.0,86470.0,0.44064829]
[1766114015722,0.00588,86497.0,86481.0,0.0115695]
[1766114015921,0.00588,86497.0,86482.0,0.00588]
[1766114016423,8e-08,86498.0,86482.0,0.15164]
[1766114016825,8e-08,86498.0,86488.0,0.0115686]
[1766114017031,8e-08,86498.0,86490.0,0.0115683]
[1766114017236,8e-08,86498.0,86489.0,0.00588]
[1766114017717,8e-08,86498.0,86481.0,0.00017348]
[1766114017921,0.14074008,86498.0,86481.0,8e-08]
[1766114018531,0.0115692,86484.0,86481.0,8e-08]
[1766114018929,0.0115662,86507.0,86481.0,8e-08]
[1766114018930,0.14074,86510.0,86481.0,8e-08]
[1766114019129,0.01881193,86521.0,86491.0,0.14576]
[1766114019130,0.00588,86516.0,86491.0,0.14576]
[1766114019342,0.00588,86516.0,86495.0,0.0115676]
[1766114019518,0.00588,86516.0,86498.0,0.0115673]
[1766114019722,0.0174449,86516.0,86494.0,0.0115677]
[1766114019924,0.00781149,86512.0,86491.0,0.15164]
[1766114020234,0.00781149,86512.0,86492.0,0.011568]
[1766114020433,0.00781149,86512.0,86491.0,0.1632082]
[1766114020434,0.0115655,86511.0,86491.0,0.1632082]
[1766114020729,0.00781149,86512.0,86491.0,0.00588]
[1766114020730,0.011566,86508.0,86491.0,0.00588]
[1766114020918,0.00588,86507.0,86489.0,0.14576]
[1766114021118,0.00588,86507.0,86489.0,0.1573285]
[1766114021424,0.0115673,86498.0,86489.0,0.14576]
[1766114021628,0.00588,86497.0,86481.0,8e-08]
[1766114021935,0.00588,86496.0,86481.0,8e-08]
[1766114022433,0.00781149,86512.0,86496.0,0.0115674]
[1766114022632,0.00781149,86512.0,86499.0,0.011567]
[1766114022931,9e-08,86512.0,86500.0,0.29488829]
[1766114023130,0.14986,86534.0,86508.0,0.0115658]
[1766114023131,9e-08,86517.0,86508.0,0.0115658]
[1766114023428,0.00324,86517.0,86497.0,0.00572]
[1766114023630,0.00324,86517.0,86503.0,0.0115665]
[1766114023836,0.07512659,86563.0,86508.0,0.03997]
[1766114023837,3e-08,86522.0,86508.0,0.03997]
[1766114024129,3e-08,86522.0,86505.0,0.0115662]
[1766114024333,3e-08,86522.0,86506.0,0.00017348]
[1766114024533,3e-08,86522.0,86507.0,0.011566]
[1766114024728,3e-08,86522.0,86506.0,0.00017348]
[1766114024936,3e-08,86522.0,86507.0,0.011566]
[1766114025324,3e-08,86522.0,86506.0,0.00017348]
[1766114025723,3e-08,86522.0,86506.0,0.01173958]
[1766114026227,3e-08,86522.0,86510.0,0.0387]
[1766114026433,0.00144,86522.0,86511.0,0.0115655]
[1766114026627,0.00216,86521.0,86511.0,0.0115655]
[1766114026823,0.00231114,86538.0,86512.0,0.04458]
[1766114027028,0.00579114,86538.0,86512.0,0.04458]
[1766114027232,0.00579114,86538.0,86515.0,0.0387]
[1766114027626,0.00579114,86538.0,86516.0,0.0115648]
[1766114027822,0.00579114,86538.0,86515.0,0.0387]
[1766114028033,0.00579114,86538.0,86515.0,0.0502649]
[1766114028529,0.00579114,86538.0,86515.0,0.0387]
[1766114028735,0.0115636,86526.0,86506.0,0.00017348]
[1766114028933,0.00588,86525.0,86506.0,0.00017348]
[1766114029133,0.00588,86525.0,86480.0,0.0115695]
[1766114029134,0.0115664,86505.0,86480.0,0.0115695]
[1766114029325,0.00396,86504.0,86482.0,0.0115694]
[1766114029732,0.00396,86504.0,86466.0,0.0001383]
[1766114029733,0.14986,86499.0,86466.0,0.0001383]
[1766114029929,0.29488829,86500.0,86466.0,0.0001383]
[1766114029930,0.14986,86488.0,86466.0,0.0001383]
[1766114030127,0.0115694,86483.0,86468.0,0.00017337]
[1766114030433,0.0115696,86481.0,86468.0,0.00017337]
[1766114030933,0.0115701,86477.0,86453.0,0.0115732]
[1766114031133,0.1614296,86481.0,86453.0,0.0115732]
[1766114031434,0.01157,86478.0,86453.0,0.0115732]
[1766114031735,0.0115705,86475.0,86449.0,0.0115738]
[1766114031922,0.00017348,86471.0,86453.0,0.00017348]
[1766114032122,0.00588,86470.0,86456.0,0.0115729]
[1766114032325,0.00588,86470.0,86454.0,0.0115731]
[1766114032726,0.00588,86470.0,86453.0,0.00017348]
[1766114033329,0.00017348,86471.0,86453.0,0.00017348]
[1766114033530,0.00224,86475.0,86460.0,0.29488829]
[1766114033728,0.00328,86475.0,86461.0,0.04021]
[1766114033934,0.00328,86475.0,86453.0,0.00017348]
[1766114034240,0.00328,86475.0,86458.0,0.0115725]
[1766114034441,0.00164,86474.0,86458.0,0.0115725]
[1766114034641,0.0132106,86474.0,86453.0,0.00017348]
[1766114035231,0.0115713,86468.0,86453.0,0.00017348]
[1766114035542,0.0115707,86473.0,86453.0,0.00017348]
[1766114035942,0.0115711,86470.0,86453.0,0.00017348]
[1766114036141,0.14986,86471.0,86453.0,8e-08]
[1766114036333,0.14986,86466.0,86436.0,0.0115755]
[1766114036532,0.00017337,86475.0,86436.0,0.0115755]
[1766114036533,0.14986,86464.0,86436.0,0.0115755]
[1766114037042,0.14986,86464.0,86442.0,0.0115747]
[1766114037242,0.00017348,86462.0,86444.0,0.00017348]
[1766114037537,0.00017348,86462.0,86445.0,0.0115744]
[1766114037732,0.0115731,86455.0,86444.0,0.00017348]
[1766114037932,0.0115731,86455.0,86444.0,3.48e-06]
[1766114038130,0.1614326,86459.0,86444.0,3.48e-06]
[1766114038540,0.14986,86459.0,86444.0,3.48e-06]
[1766114038739,0.0115735,86452.0,86444.0,3.48e-06]
[1766114038941,0.0115742,86447.0,86421.0,0.0115775]
[1766114039131,0.14986,86445.0,86409.0,2.43057489]
[1766114039335,0.0115765,86430.0,86409.0,0.00013489]
[1766114039531,0.00588,86429.0,86409.0,0.00013489]
[1766114039732,0.0115775,86422.0,86409.0,0.00013489]
[1766114039933,0.00588,86421.0,86409.0,0.00013489]
[1766114040340,0.0174576,86421.0,86398.0,0.0115806]
[1766114040538,0.1673176,86421.0,86398.0,0.0115806]
[1766114040943,0.15574,86421.0,86398.0,0.0115806]
[1766114041143,0.00017358,86424.0,86400.0,0.29488829]
[1766114041344,0.00012912,86423.0,86403.0,0.00017358]
[1766114041545,0.0115777,86421.0,86403.0,0.00017358]
[1766114041849,0.1614386,86413.0,86383.0,0.04207]
[1766114042047,0.00588,86412.0,86383.0,0.04207]
[1766114042246,0.15574,86412.0,86388.0,0.0115819]
[1766114042845,0.00017358,86409.0,86391.0,0.01175508]
[1766114043141,0.00013352,86408.0,86391.0,0.01175508]
[1766114044649,0.14596352,86408.0,86391.0,0.00017358]
[1766114044947,0.14596352,86408.0,86378.0,0.01389872]
[1766114044948,0.14583,86404.0,86378.0,0.01389872]
[1766114045144,0.14583,86402.0,86378.0,0.01389872]
[1766114045351,0.14583,86400.0,86378.0,0.00231542]
[1766114045846,0.00013352,86408.0,86378.0,0.00231542]
[1766114045847,2e-08,86408.0,86400.0,0.0115803]
[1766114046041,0.00224,86407.0,86396.0,0.0115808]
[1766114046235,0.00224,86407.0,86395.0,0.011581]
[1766114046435,0.00224,86407.0,86391.0,0.0115815]
[1766114046748,0.00224,86407.0,86387.0,0.011582]
[1766114046943,0.00224,86407.0,86386.0,0.0115822]
[1766114047140,0.00224,86407.0,86389.0,0.0115818]
[1766114047550,0.00224,86407.0,86380.0,0.04290579]
[1766114047751,0.00224,86407.0,86392.0,0.0115814]
[1766114047949,0.00588,86406.0,86392.0,0.0115814]
[1766114048140,0.00588,86406.0,86386.0,0.0115822]
[1766114048342,0.00588,86406.0,86380.0,0.00011579]
[1766114048343,0.15171,86406.0,86380.0,0.00011579]
[1766114048547,0.0115806,86399.0,86380.0,0.00011579]
[1766114048743,0.00588,86398.0,86380.0,0.00011579]
[1766114049051,0.0115811,86395.0,86380.0,0.00011579]
[1766114049451,0.1574111,86395.0,86380.0,0.00011579]
[1766114049847,0.0115815,86392.0,86380.0,0.00011579]
[1766114050147,0.00588,86391.0,86378.0,0.00231542]
[1766114051248,0.0115818,86390.0,86368.0,0.0115846]
[1766114051554,0.00017358,86388.0,86359.0,0.04557]
[1766114051750,0.00017358,86388.0,86373.0,0.011584]
[1766114051945,0.00017358,86388.0,86370.0,0.0115844]
[1766114052855,0.00017358,86388.0,86359.0,0.04557]
[1766114053155,0.00017358,86388.0,86371.0,0.0115841]
[1766114053449,0.00017358,86388.0,86359.0,0.04557]
[1766114053450,0.1521722,86387.0,86366.0,0.0115849]
[1766114053842,0.1521725,86385.0,86363.0,0.01168976]
[1766114054044,0.14647,86384.0,86365.0,0.011585]
[1766114054954,0.0115827,86383.0,86364.0,0.0115851]
[1766114055156,0.1521736,86376.0,86356.0,0.0115862]
[1766114055449,0.0115843,86372.0,86343.0,0.04563]
[1766114055651,0.0115858,86360.0,86342.0,0.0115881]
[1766114055951,0.00605369,86375.0,86336.0,0.04299]
[1766114055952,0.00588,86359.0,86348.0,0.0115872]
[1766114056150,0.00588,86359.0,86342.0,0.0115881]
[1766114056151,0.00010216,86358.0,86342.0,0.0115881]
[1766114056465,0.00017369,86362.0,86356.0,0.0115862]
[1766114056656,5e-08,86362.0,86341.0,0.04501]
[1766114056850,0.0022,86361.0,86353.0,0.0115866]
[1766114057250,0.0022,86361.0,86341.0,0.04501]
[1766114057449,0.14279,86361.0,86329.0,0.04501]
[1766114057640,0.14279,86361.0,86342.0,0.00017369]
[1766114057846,0.0115879,86345.0,86327.0,0.0115902]
[1766114058045,0.00588,86344.0,86327.0,0.0115902]
[1766114058552,0.1521769,86352.0,86319.0,0.04501]
[1766114058751,0.00017369,86344.0,86329.0,0.0115898]
[1766114058950,0.00588,86343.0,86329.0,0.0115898]
[1766114059151,0.00588,86343.0,86331.0,0.0115895]
[1766114059352,0.00588,86343.0,86326.0,0.0115903]
[1766114059758,0.00588,86343.0,86329.0,0.0115898]
[1766114060252,0.00588,86342.0,86321.0,0.04614]
[1766114060456,0.00204,86343.0,86330.0,0.29488829]
[1766114060647,0.001,86342.0,86334.0,0.04635]
[1766114060848,0.011586,86359.0,86340.0,0.0115883]
[1766114061248,0.0115862,86357.0,86336.0,0.0115888]
[1766114061759,0.00017369,86355.0,86338.0,0.00017369]
[1766114062162,0.00017369,86355.0,86342.0,0.0115882]
[1766114062461,0.00588,86354.0,86338.0,0.00017369]
[1766114062856,0.00588,86353.0,86346.0,0.0115875]
[1766114063058,0.00588,86353.0,86343.0,0.011588]
[1766114063361,0.00017369,86355.0,86345.0,0.0115876]
[1766114063560,0.0115842,86372.0,86353.0,0.0115866]
[1766114063763,0.0115857,86361.0,86343.0,0.0115879]
[1766114063950,0.00588,86360.0,86348.0,0.0115873]
[1766114064148,0.00588,86360.0,86345.0,0.0115877]
[1766114065253,0.14059,86383.0,86347.0,0.04648]
[1766114065556,0.14059,86383.0,86358.0,0.0115859]
[1766114065557,0.0115836,86376.0,86358.0,0.0115859]
[1766114065752,0.00588,86382.0,86351.0,0.04648]
[1766114065962,0.14059,86383.0,86354.0,0.0115865]
[1766114066152,0.0115813,86393.0,86365.0,0.04657]
[1766114066347,0.0115824,86385.0,86370.0,0.00017369]
[1766114066550,0.00588,86384.0,86370.0,0.00017369]
[1766114067061,0.1521738,86375.0,86356.0,0.0115863]
[1766114067265,0.00588,86374.0,86356.0,0.0115863]
[1766114068056,0.00588,86374.0,86358.0,0.0115859]
[1766114068262,0.00588,86380.0,86366.0,0.0115848]
[1766114068562,0.00504,86380.0,86368.0,0.0115846]
[1766114068754,0.00464,86381.0,86368.0,0.0115846]
[1766114069258,0.00464,86381.0,86363.0,0.04641]
[1766114069462,0.00464,86381.0,86364.0,0.0115852]
[1766114069661,0.00464,86381.0,86367.0,0.0115847]
[1766114070247,0.00464,86381.0,86363.0,0.0115853]
[1766114070663,0.00464,86381.0,86361.0,0.04619]
[1766114070863,0.00464,86381.0,86363.0,0.04619]
[1766114071370,0.14523,86381.0,86358.0,0.00588]
[1766114071659,0.0115835,86377.0,86359.0,0.0115858]
[1766114072050,0.14523,86381.0,86358.0,0.00588]
[1766114072257,0.0115831,86380.0,86362.0,0.0115854]
[1766114072553,0.0115835,86378.0,86359.0,0.0115858]
[1766114072850,0.156813,86381.0,86362.0,0.0115854]
[1766114073055,0.0115833,86379.0,86359.0,0.0115858]
[1766114073465,0.0115833,86379.0,86362.0,0.0115855]
[1766114073956,0.14523,86381.0,86358.0,0.00588]
[1766114074148,0.14523,86381.0,86356.0,0.00017369]
[1766114074149,0.14059,86378.0,86356.0,0.00017369]
[1766114074566,0.0115846,86369.0,86356.0,0.00017369]
[1766114074757,0.00588,86368.0,86356.0,0.00017369]
[1766114076164,0.0115852,86365.0,86356.0,0.00017369]
[1766114076365,0.0115854,86363.0,86345.0,0.00588]
[1766114076564,0.14059,86366.0,86345.0,0.00588]
[1766114076866,0.14059,86362.0,86342.0,0.0115882]
[1766114077060,0.0115859,86360.0,86342.0,0.0115882]
[1766114077368,0.0115859,86360.0,86342.0,0.01176189]
[1766114077554,0.00588,86361.0,86342.0,0.00017369]
[1766114077960,0.0174657,86361.0,86345.0,0.0115876]
[1766114078863,0.1521768,86353.0,86338.0,0.0115886]
[1766114079052,0.00588,86352.0,86329.0,0.08947]
[1766114079451,0.14647,86352.0,86330.0,0.0115897]
[1766114079667,0.011588,86344.0,86328.0,0.01159]
[1766114079864,0.00588,86343.0,86328.0,0.01159]
[1766114080065,0.00588,86343.0,86325.0,0.0115904]
[1766114080762,0.00588,86343.0,86324.0,0.00588]
[1766114080763,0.00588,86343.0,86328.0,0.01159]
[1766114081564,0.00588,86343.0,86324.0,0.00588]
[1766114081770,0.00588,86343.0,86332.0,0.0115894]
[1766114082566,0.00588,86343.0,86324.0,0.00588]
[1766114082567,0.00588,86343.0,86331.0,0.0115896]
[1766114083269,9e-08,86350.0,86348.0,0.0115873]
[1766114083472,0.13859,86376.0,86348.0,0.0115873]
[1766114083473,0.0115841,86373.0,86355.0,0.0115863]
[1766114083663,0.00588,86372.0,86355.0,0.0115863]
[1766114083858,0.0115816,86391.0,86342.0,0.00588]
[1766114083859,0.13859,86386.0,86353.0,0.08964]
[1766114084171,0.0115837,86376.0,86358.0,0.011586]
[1766114084475,0.00588,86375.0,86358.0,0.01175969]
[1766114085465,0.00556,86374.0,86358.0,0.00017369]
[1766114085859,0.20140053,86400.0,86359.0,0.08996]
[1766114086058,0.10311353,86431.0,86358.0,0.00017369]
[1766114086059,0.0115814,86393.0,86375.0,0.0115837]
[1766114086266,2.43656,86399.0,86377.0,0.0115834]
[1766114086267,0.011581,86396.0,86377.0,0.0115834]
[1766114086483,0.0115813,86394.0,86377.0,0.0115834]
[1766114086659,0.0115813,86394.0,86374.0,0.0115838]
[1766114086970,0.0115815,86392.0,86375.0,0.00017369]
[1766114087163,0.00588,86391.0,86375.0,0.00017369]
[1766114087357,0.0115821,86388.0,86375.0,0.00017369]
[1766114088163,0.0115816,86391.0,86375.0,0.00017369]
[1766114088361,0.00588,86390.0,86375.0,0.00017369]
[1766114088671,0.00588,86390.0,86375.0,0.01175739]
[1766114089067,0.00588,86389.0,86375.0,0.01175739]
[1766114090871,0.011582,86388.0,86375.0,0.00017369]
[1766114091168,0.14447,86389.0,86375.0,0.00017369]
[1766114092565,0.0115826,86384.0,86375.0,3.69e-06]
[1766114094070,0.0115822,86387.0,86375.0,3.69e-06]
[1766114094576,0.14447,86389.0,86375.0,3.69e-06]
[1766114094769,0.13859,86387.0,86375.0,3.69e-06]
[1766114095273,0.00017369,86393.0,86375.0,3.69e-06]
[1766114095274,0.00605369,86393.0,86375.0,0.09006369]
[1766114095570,0.00605369,86393.0,86381.0,0.0115828]
[1766114095775,0.00605369,86393.0,86381.0,0.0115829]
[1766114096476,0.15622509,86393.0,86375.0,0.01158739]
[1766114096678,0.15622509,86393.0,86377.0,0.0115834]
[1766114096877,0.14464369,86393.0,86377.0,0.0115834]
[1766114097179,0.14464369,86393.0,86375.0,3.69e-06]
[1766114097366,0.00605369,86393.0,86375.0,3.69e-06]
[1766114097866,0.00605369,86393.0,86379.0,0.0115832]
[1766114098268,0.00605369,86393.0,86382.0,0.0115828]
[1766114098466,0.00605369,86393.0,86375.0,3.69e-06]
[1766114098467,3.69e-06,86393.0,86388.0,0.0115819]
[1766114098672,0.00588,86398.0,86388.0,0.0115819]
[1766114098872,0.00212,86398.0,86388.0,0.0115819]
[1766114099275,2.43332,86414.0,86399.0,0.0115804]
[1766114099477,0.150168,86418.0,86401.0,0.0115801]
[1766114099674,0.150168,86418.0,86401.0,0.01175379]
[1766114099675,0.00588,86413.0,86401.0,0.01175379]
[1766114099871,0.00588,86413.0,86401.0,0.00017369]
[1766114100179,3.69e-06,86418.0,86403.0,0.09143]
[1766114100370,0.13859,86417.0,86401.0,0.00017369]
[1766114100678,3.69e-06,86418.0,86401.0,3.69e-06]
[1766114100878,3.69e-06,86418.0,86411.0,0.0115788]
[1766114101079,3.69e-06,86418.0,86410.0,0.00108]
[1766114101269,0.15017169,86418.0,86408.0,0.00588]
[1766114101484,0.13859369,86418.0,86401.0,3.69e-06]
[1766114102382,3.69e-06,86418.0,86405.0,0.0115797]
[1766114102680,3.69e-06,86418.0,86401.0,3.69e-06]
[1766114102681,0.13664,86443.0,86412.0,0.09116]
[1766114102870,0.00588,86441.0,86416.0,0.09116]
[1766114103375,0.00588,86441.0,86430.0,0.0115763]
[1766114103577,0.00588,86441.0,86427.0,0.00017358]
[1766114103879,0.13664,86443.0,86427.0,0.00017358]
[1766114104182,0.00588,86441.0,86431.0,0.0115762]
[1766114104371,0.00017358,86444.0,86430.0,0.0115762]
[1766114105276,0.00017358,86444.0,86427.0,0.00017358]
[1766114105277,8e-08,86444.0,86427.0,0.00017358]
[1766114105470,0.00356017,86448.0,86430.0,0.20140053]
[1766114105675,0.00356017,86448.0,86431.0,0.00588]
[1766114106281,0.0115742,86447.0,86427.0,0.00017358]
[1766114106485,0.1482153,86438.0,86408.0,0.0908]
[1766114106785,0.0115773,86423.0,86398.0,0.0908]
[1766114106975,0.00588,86422.0,86399.0,0.00588]
[1766114107176,0.13664,86426.0,86401.0,0.0908]
[1766114107371,0.0115733,86454.0,86410.0,0.20140053]
[1766114107372,0.00588,86427.0,86410.0,0.20140053]
[1766114107581,0.00605358,86427.0,86411.0,0.00588]
[1766114107789,2.43256,86445.0,86413.0,0.0908]
[1766114108084,0.00588,86457.0,86430.0,0.20140053]
[1766114108283,0.00588,86457.0,86447.0,0.011574]
[1766114108584,0.00588,86457.0,86442.0,0.00588]
[1766114108978,0.00588,86457.0,86449.0,0.0115738]
[1766114109181,0.00588,86457.0,86442.0,0.00588]
[1766114109973,0.00588,86457.0,86443.0,0.0115746]
[1766114110179,0.00588,86457.0,86446.0,0.0115741]
[1766114110386,0.0115702,86477.0,86448.0,0.09167]
[1766114110589,0.13664,86483.0,86460.0,0.0115723]
[1766114110790,2.43232,86487.0,86456.0,0.0115728]
[1766114110791,0.1482098,86480.0,86456.0,0.0115728]
[1766114110985,0.1482098,86480.0,86446.0,0.0115742]
[1766114110986,0.13664,86476.0,86446.0,0.0115742]
[1766114111291,0.13664,86476.0,86430.0,0.30464683]
[1766114111292,0.13664,86461.0,86445.0,0.00392]
[1766114111485,0.13664,86461.0,86444.0,0.0115744]
[1766114111486,0.13664,86461.0,86442.0,0.00392]
[1766114111693,0.13664,86461.0,86442.0,0.00588]
[1766114111889,0.13664,86461.0,86443.0,0.0115746]
[1766114112085,0.00588,86463.0,86442.0,0.0972]
[1766114112586,0.00588,86463.0,86450.0,0.0115736]
[1766114112795,0.00588,86463.0,86444.0,0.00017347]
[1766114112796,0.1367,86455.0,86444.0,0.00017347]
[1766114113099,0.1367,86449.0,86414.0,0.09132]
[1766114113288,0.1367,86449.0,86378.0,0.07196415]
[1766114113289,0.1367,86433.0,86411.0,0.0115789]
[1766114113593,0.1367,86433.0,86393.0,0.0115812]
[1766114113594,0.1482768,86427.0,86409.0,0.00392]
[1766114113795,0.0115762,86432.0,86412.0,0.0115787]
[1766114114088,0.14844988,86431.0,86413.0,0.00017358]
[1766114115081,0.14844988,86431.0,86413.0,3.58e-06]
[1766114115082,0.1367,86428.0,86413.0,3.58e-06]
[1766114115282,0.011577,86426.0,86413.0,3.58e-06]
[1766114115690,0.14258,86427.0,86413.0,3.58e-06]
[1766114117181,0.14258,86427.0,86414.0,0.0115785]
[1766114117898,0.00588,86427.0,86413.0,0.01158218]
[1766114118390,0.00017358,86431.0,86413.0,3.58e-06]
[1766114118786,0.00017358,86431.0,86420.0,0.0115777]
[1766114118985,0.00017358,86431.0,86413.0,0.01158218]
[1766114119185,0.00017358,86431.0,86415.0,0.0115783]
[1766114119989,0.00017358,86431.0,86413.0,3.58e-06]
[1766114120183,0.00017358,86431.0,86418.0,0.01389225]
[1766114120592,0.00017358,86431.0,86418.0,0.00231435]
[1766114120786,8e-08,86431.0,86429.0,0.0115765]
[1766114120988,8e-08,86431.0,86420.0,0.20140053]
[1766114120989,8e-08,86431.0,86428.0,0.0115765]
[1766114121391,8e-08,86431.0,86424.0,0.011577]
[1766114121596,8e-08,86431.0,86420.0,0.0115776]
[1766114121802,8e-08,86431.0,86418.0,0.00231435]
[1766114122092,8e-08,86431.0,86422.0,0.0115774]
[1766114122284,0.3208,86468.0,86425.0,0.09069]
[1766114122597,0.3208,86468.0,86421.0,0.00588]
[1766114122598,0.00588,86458.0,86447.0,0.0115741]
[1766114123291,0.00588,86458.0,86444.0,0.00017358]
[1766114123598,0.00588,86458.0,86444.0,0.01174798]
[1766114125294,0.00588,86458.0,86444.0,0.00017358]
[1766114127100,0.1367,86460.0,86444.0,0.00017358]
[1766114127396,0.1482731,86455.0,86443.0,0.00444]
[1766114127602,0.1482731,86455.0,86419.0,0.0115778]
[1766114127603,0.1367,86439.0,86419.0,0.0115778]
[1766114127788,0.1367,86439.0,86410.0,0.07517]
[1766114127984,0.1367,86433.0,86400.0,0.07464]
[1766114128289,0.1367,86433.0,86400.0,0.0115803]
[1766114128290,0.0115778,86420.0,86400.0,0.0115803]
[1766114128484,0.1367,86424.0,86380.0,0.32506537]
[1766114128485,0.0115794,86408.0,86386.0,0.0115822]
[1766114128691,0.14258,86407.0,86384.0,0.00588]
[1766114128890,0.14258,86407.0,86388.0,0.011582]
[1766114129089,0.14258,86407.0,86371.0,0.00010185]
[1766114129090,0.1367,86403.0,86371.0,0.01168605]
[1766114129290,0.00017358,86396.0,86372.0,0.00588]
[1766114129704,0.00017358,86396.0,86380.0,0.011583]
[1766114129891,0.00017358,86396.0,86381.0,0.00588]
[1766114130701,0.00017358,86396.0,86382.0,0.0115827]
[1766114131300,8e-08,86396.0,86381.0,0.00588]
[1766114131498,8e-08,86396.0,86390.0,0.0115817]
[1766114132089,8e-08,86396.0,86392.0,0.0115813]
[1766114132301,8e-08,86396.0,86389.0,0.00588]
[1766114132498,8e-08,86396.0,86385.0,0.00017358]
[1766114132701,8e-08,86396.0,86386.0,0.00588]
[1766114133003,8e-08,86396.0,86387.0,0.0115821]
[1766114133596,8e-08,86396.0,86387.0,0.00588]
[1766114133795,8e-08,86396.0,86388.0,0.011582]
[1766114134407,8e-08,86396.0,86387.0,0.00588]
[1766114135499,8e-08,86396.0,86387.0,0.0174621]
[1766114135694,8e-08,86396.0,86385.0,0.00017358]
[1766114135902,0.13670008,86396.0,86385.0,3.58e-06]
[1766114136203,0.13670008,86396.0,86381.0,0.00208]
[1766114136402,0.00588,86395.0,86378.0,0.00335542]
[1766114136711,0.00588,86395.0,86382.0,0.0115827]
[1766114136894,0.00588,86395.0,86379.0,0.0174631]
[1766114137098,0.00588,86395.0,86382.0,0.0115827]
[1766114137701,0.00588,86395.0,86379.0,0.0174632]
[1766114138208,0.1367,86391.0,86376.0,0.00588]
[1766114138504,0.1482818,86390.0,86371.0,0.00010185]
[1766114138703,0.0115821,86388.0,86371.0,0.00302185]
[1766114138912,0.1367,86390.0,86371.0,0.00370185]
[1766114139105,0.1367,86390.0,86374.0,0.0115838]
[1766114139413,0.1367,86390.0,86371.0,0.01756605]
[1766114139803,0.00588,86395.0,86371.0,0.00598185]
[1766114139804,0.1367,86389.0,86371.0,0.00598185]
[1766114139998,8e-08,86396.0,86371.0,0.00598185]
[1766114139999,0.14258,86388.0,86371.0,0.00010185]
[1766114140216,0.14258,86388.0,86350.0,0.07935]
[1766114140217,0.1367,86384.0,86350.0,0.07935]
[1766114140415,0.1367,86365.0,86333.0,2.43248]
[1766114140710,0.00017368,86376.0,86357.0,0.0115861]
[1766114140908,0.00588,86375.0,86356.0,0.0115863]
[1766114141208,0.00011895,86374.0,86353.0,0.0008]
[1766114141411,0.00011895,86374.0,86364.0,0.0115852]
[1766114141709,0.00017368,86376.0,86364.0,0.0115852]
[1766114142013,0.00017368,86376.0,86366.0,0.0115849]
[1766114142211,0.00017368,86376.0,86362.0,0.0174654]
[1766114142808,0.00017368,86376.0,86366.0,0.0115849]
[1766114143315,0.00017368,86376.0,86362.0,0.0115854]
[1766114143512,0.00017368,86376.0,86363.0,0.00588]
[1766114143812,0.00017368,86376.0,86353.0,0.07939]
[1766114143813,0.00017368,86376.0,86364.0,0.00588]
[1766114144211,0.0115837,86375.0,86364.0,0.00588]
[1766114144511,0.00017368,86376.0,86364.0,0.00588]
[1766114145212,0.01175728,86376.0,86364.0,0.00588]
[1766114146011,0.1461,86374.0,86339.0,0.07835]
[1766114146207,0.1576845,86370.0,86350.0,0.011587]
[1766114146409,0.1576845,86370.0,86351.0,0.00588]
[1766114146809,0.0115848,86368.0,86352.0,0.0034]
[1766114147117,0.1461,86364.0,86338.0,0.01390509]
[1766114147310,0.1461,86364.0,86338.0,0.00819649]
[1766114147617,0.0115869,86352.0,86338.0,0.00819649]
[1766114147820,0.00017368,86354.0,86338.0,0.00819649]
[1766114148312,0.01176028,86354.0,86338.0,0.00819649]
[1766114148514,0.01176028,86354.0,86322.0,0.07808]
[1766114148515,0.14627368,86354.0,86322.0,0.07808]
[1766114148718,0.1576873,86349.0,86330.0,0.0115897]
[1766114148919,0.00588,86348.0,86330.0,0.0115897]
[1766114149220,0.00588,86348.0,86331.0,0.00588]
[1766114149414,0.00588,86348.0,86332.0,0.0115894]